Cogmind - Beta 11 X4 @@@ ROGUE MODE // 2021.06.03 @ 15:35:44 Player: rusmal Result: Destroyed by D-53 Grenadier with Mini Grenade Launcher Performance ------------- Evolutions (0) 0 Regions Visited (2) 400 Robots Destroyed (32) 160 Value Destroyed (739) 739 Prototype IDs (2) 40 Alien Tech Used (0) 0 Bonus (-255) -255 TOTAL SCORE: 1084 Bonus ------- Friendly Fire -255 Cogmind --------- Core Integrity 0/250 Matter 175/300 Energy 98/125 System Corruption 7% Temperature Cool (0) Movement Walking (200) Ox1 Location -10/Mines Parts ------- > --- POWER (1) -------- Light Ion Engine > --- PROPULSION (2) --- Aluminum Leg Improved Aluminum Leg > --- UTILITY (2) ------ Medium Storage Unit Light Armor Plating > --- WEAPON (2) ------- Assault Rifle Grenade Launcher > --- INVENTORY (10) --- Aluminum Leg Aluminum Leg Aluminum Leg Improved Aluminum Leg Large Storage Unit Beam Cannon Mining Claw Peak State ------------ > --- POWER ------------ Ion Engine > --- PROPULSION ------- Improved Aluminum Leg Improved Aluminum Leg > --- UTILITY ---------- Heat Sink Small Storage Unit > --- WEAPON ----------- Small Laser Assault Rifle > --- INVENTORY -------- Light Ion Engine Aluminum Leg Aluminum Leg Improved Aluminum Leg Improved Aluminum Leg Small Laser Light Assault Rifle Mining Claw [Rating: 10] Favorites ----------- Power Light Ion Engine Engine Light Ion Engine Propulsion Aluminum Leg Leg Aluminum Leg Utility Small Storage Unit Device Heat Sink Storage Small Storage Unit Protection Light Armor Plating Weapon Light Assault Rifle Energy Gun Small Laser Energy Cannon Beam Cannon Ballistic Gun Light Assault Rifle Launcher Grenade Launcher Build | -11 -10 -10 ------- Run | Scr Mat Min Slots Evolved . | . . . Power . | . . . Propulsion . | . . . Utility . | . . . Weapon . | . . . Parts Attached 35 | 6 21 8 Power 7 | 1 4 2 Engine 7 | 1 4 2 Core . | . . . Reactor . | . . . Propulsion 12 | 2 8 2 Treads . | . . . Leg 12 | 2 8 2 Wheel . | . . . Hover . | . . . Flight . | . . . Utility 6 | 1 4 1 Device 2 | . 2 . Storage 2 | 1 1 . Processor . | . . . Hackware . | . . . Protection 2 | . 1 1 Artifact . | . . . Weapon 10 | 2 5 3 Energy Gun 2 | 1 1 . Energy Cannon 1 | . 1 . Ballistic Gun 5 | 1 3 1 Ballistic Cannon . | . . . Launcher 2 | . . 2 Special Weapon . | . . . Impact Weapon . | . . . Slashing Weapon . | . . . Piercing Weapon . | . . . Special Melee Weapon . | . . . Unidentified Prototypes . | . . . Parts Lost 4 | . 1 3 Power 1 | . . 1 Propulsion . | . . . Utility 1 | . . 1 Weapon 2 | . 1 1 Highest Loss Streak 3 | . 1 3 Average Slot Usage (%) 98 | . 98 100 Engine 13 | . 13 14 Leg 28 | . 28 28 Device 6 | . 6 . Storage 14 | . 14 14 Protection 7 | . 6 14 Energy Gun 4 | . 4 . Energy Cannon 4 | . 4 4 Ballistic Gun 17 | . 18 14 Launcher 1 | . . 10 Naked Turns . | . . . Heaviest Build 21 | 13 20 21 Greatest Support 26 | 20 26 10 Greatest Overweight (x) 2 | . . 2 Average Overweight (x) . | . . 1 Largest Inventory Capacity 10 | 8 10 10 Average Capacity 8 | 7 8 10 Most Carried 10 | 6 10 10 Average Carried 8 | 2 8 9 Final Capacity 10 | 8 10 10 Final Carried 10 | 6 10 7 Class Distribution -------------------- 93% | Mutant 6% | Scavenger-Mutant Dominant Class ---------------- Mutant | -10/Materials Mutant | -10/Mines Resources | -11 -10 -10 ----------- Run | Scr Mat Min Matter Collected 765 | 181 530 54 Remotely . | . . . Salvage Created 1268 | . 1143 125 Parts 66 | . 59 7 Haulers Intercepted 2 | . 2 . Recyclers Shooed 2 | . 2 . Parts Field Recycled . | . . . Retrieved Matter . | . . . Parts Self-Destructed . | . . . Prevented . | . . . Kills | -11 -10 -10 ------- Run | Scr Mat Min Combat Hostiles Destroyed 35 | . 20 15 Guns 22 | . 20 2 Cannons 1 | . . 1 AOE 12 | . . 12 Classes Destroyed 7 | . 5 2 Worker 1 | . . 1 Hauler 2 | . 2 . Recycler 3 | . 3 . Operator 2 | . 2 . Swarmer 6 | . 3 3 Grunt 17 | . 17 . Assembled 12 | . . 12 Thug 1 | . . 1 Best Kill Streak 13 | . 7 13 Combat Bots Only 12 | . 7 12 Max Kills in Single Turn 4 | . 1 4 Gunslinging . | . . . Exploded 4 | . . 4 Melee . | . . . Uniques/NPCs Destroyed . | . . . Combat | -11 -10 -10 -------- Run | Scr Mat Min Damage Taken 1438 | . 763 675 Core 250 | . 138 112 Absorbed by Shields . | . . . Core Remaining (%) 100 | 100 . . Volleys Fired 107 | . 83 24 Largest 2 | . 2 2 Hottest 80 | . 80 80 Shots Fired 201 | . 166 35 Gun 173 | . 159 14 Cannon 19 | . 7 12 Launcher 9 | . . 9 Special . | . . . Kinetic 144 | . 130 14 Thermal 36 | . 24 12 Explosive 9 | . . 9 Electromagnetic 12 | . 12 . Robot Hit Streak 15 | . 15 6 Robot Miss Streak 4 | . 2 4 Penetration Max . | . . . Secondary Targets 1 | . 1 . Max Gunslinging Chain 1 | . 1 . Shots Hit Robots 137 | . 118 19 Core Hits 97 | . 53 44 Critical Kills . | . . . Critical Parts Destroyed 1 | . 1 . Critical Strikes 1 | . 1 . Destroy 1 | . 1 . Melee Attacks . | . . . Impact . | . . . Slashing . | . . . Piercing . | . . . Sneak Attacks . | . . . Combat Hostiles . | . . . Follow-up Attacks . | . . . Damage Inflicted 2358 | . 1307 1051 Guns 1278 | . 1194 84 Cannons 175 | . 88 87 Explosions 905 | . 25 880 Melee . | . . . Ramming . | . . . Kinetic 1034 | . 950 84 Thermal 330 | . 243 87 Explosive 880 | . . 880 Electromagnetic 114 | . 114 . Impact . | . . . Slashing . | . . . Piercing . | . . . Highest Corruption 7 | . 2 7 Average Corruption 2 | . 2 2 Corruption Purged . | . . . Effects 7 | . 5 2 Message Errors 2 | . 2 . Heat Flow Errors 2 | . 2 . Energy Discharges 1 | . . 1 Data Loss (minor) 1 | . 1 . Weapon Failures 1 | . . 1 Overload Shots . | . . . Overflow Damage 18 | . . 18 Projectiles . | . . . Explosions 18 | . . 18 Melee . | . . . Knockbacks . | . . . Impact . | . . . Kinetic . | . . . Secondary . | . . . Self-Inflicted Damage 151 | . . 151 Shots 6 | . . 6 Rammed . | . . . Targets Rammed . | . . . Kicked . | . . . Crushed . | . . . Highest Temperature 399 | . 267 399 Average Temperature 83 | . 45 186 Received Heat Transfer 423 | . 423 . Effects 3 | . . 3 Shutdowns 1 | . . 1 Energy Bleed 1 | . . 1 Short Circuit 1 | . . 1 Siege Activations . | . . . Robots Corrupted . | . . . Combat Hostiles . | . . . Parts Fried . | . . . Impact Corruptions . | . . . Robots Melted . | . . . Combat Hostiles . | . . . Parts Melted . | . . . Heat Transferred 670 | . 485 185 Parts Sabotaged . | . . . Parts Stolen . | . . . Parts Stripped . | . . . Power Chain Reactions 1 | . 1 . Missiles Intercepted . | . . . Alert | -11 -10 -10 ------- Run | Scr Mat Min Peak Influence 379 | . 379 171 Initial 86 | . . 86 Average 166 | . 175 151 Maximum Alert Level 1 | . 1 . Low Security (%) 62 | 100 56 100 Level 1 37 | . 43 . Level 2 . | . . . Level 3 . | . . . Level 4 . | . . . Level 5 . | . . . High Security . | . . . Max Security . | . . . Squads Dispatched 5 | . 4 1 Investigation 3 | . 2 1 Extermination . | . . . Reinforcement 2 | . 2 . Assault . | . . . Garrison . | . . . Intercept . | . . . Construction Impeded . | . . . Haulers Reinforced . | . . . Cargo Convoy Interrupts . | . . . Stealth | -11 -10 -10 --------- Run | Scr Mat Min Distress Signals 2 | . 2 . Communications Jammed . | . . . Distress Signals . | . . . Times Spotted 65 | . 39 26 Peak Tracking Total 14 | . 9 14 Tactical Retreats 3 | . 3 . Traps | -11 -10 -10 ------- Run | Scr Mat Min Traps Triggered 3 | . 3 . Indirectly . | . . . Trap Hack Attempts . | . . . Triggered . | . . . Disarmed . | . . . Reprogrammed . | . . . Reused . | . . . Traps Extracted . | . . . Installed . | . . . Triggered . | . . . Machines | -11 -10 -10 ---------- Run | Scr Mat Min Machines Disabled 2 | . 1 1 Max in Single Turn 1 | . 1 1 Machines Sabotaged . | . . . Garrisons Compromised . | . . . Overloaded Fab Kills . | . . . Fab Network Shutdowns . | . . . Hacking | -11 -10 -10 --------- Run | Scr Mat Min Machines Accessed 10 | . 9 1 Terminals 6 | . 6 . Fabricators . | . . . Repair Stations 1 | . 1 . Recycling Units 2 | . 2 . Scanalyzers . | . . . Garrison Access . | . . . Total Hacks 19 | . 18 1 Successful 12 | . 11 1 Failed 7 | . 7 . Catastrophic . | . . . Database Lockouts . | . . . Manual 5 | . 5 . Terminals 13 | . 13 . Fabricators . | . . . Repair Stations 2 | . 2 . Recycling Units 3 | . 3 . Scanalyzers . | . . . Garrison Access . | . . . Terminal Hacks 5 | . 4 1 Robot Analysis 1 | . 1 . Prototype ID Bank 1 | . 1 . Open Door 1 | . . 1 Hauler Manifests 1 | . 1 . Registered Components 1 | . 1 . Fabricator Hacks . | . . . Repair Station Hacks 2 | . 2 . Scan Component 1 | . 1 . Repair 1 | . 1 . Recycling Unit Hacks 3 | . 3 . Report Inventory 2 | . 2 . Retrieve Components 1 | . 1 . Scanalyzer . | . . . Garrison Access Hacks . | . . . Unauthorized Hacks 2 | . 2 . Terminals 2 | . 2 . Assimilate 1 | . 1 . Operators 1 | . 1 . Fabricators . | . . . Repair Stations . | . . . Recycling Units . | . . . Scanalyzers . | . . . Garrison Access . | . . . Data Cores Recovered . | . . . Used . | . . . Hacking Detections 4 | . 4 . Full Trace Events . | . . . Feedback Events . | . . . Feedback Blocked . | . . . Robot Schematics Acquired . | . . . Robots Built . | . . . Matter . | . . . Time . | . . . Total Robot Build Rating . | . . . Part Schematics Acquired . | . . . Parts Built . | . . . Matter . | . . . Time . | . . . Total Part Build Rating . | . . . Parts Repaired 1 | . 1 . Time 26 | . 26 . Parts Recycled . | . . . Recycled Matter . | . . . Retrieved Matter . | . . . Retrieved Components 10 | . 10 . Parts Scanalyzed . | . . . Part Schematics Acquired . | . . . Parts Damaged . | . . . Bothacking | -11 -10 -10 ------------ Run | Scr Mat Min Used RIF Installer . | . . . Robots Hacked . | . . . Non-combat . | . . . Combat . | . . . Robot Hacks Applied . | . . . Relay Couplers Released . | . . . Robots Rewired . | . . . Allies Hacked . | . . . Hacks Repelled . | . . . Allies | -11 -10 -10 -------- Run | Scr Mat Min Total Allies . | . . . Largest Group . | . . . Highest-Rated Group . | . . . Highest-Rated Ally . | . . . Total Orders . | . . . Ally Attacks . | . . . Total Damage . | . . . Kills . | . . . Allies Corrupted . | . . . Allies Melted . | . . . Intel | -11 -10 -10 ------- Run | Scr Mat Min Robot Analysis Total 1 | . 1 . Derelict Logs Recovered . | . . . Drone Launches . | . . . Drone Recoveries . | . . . Exploration | -11 -10 -10 ------------- Run | Scr Mat Min Turns Passed 1909 | 72 1633 204 Spaces Moved 1087 | 52 978 57 Core 6 | 6 . . Treads . | . . . Legs 1081 | 46 978 57 Wheels . | . . . Hover . | . . . Flight . | . . . Fastest Speed 50 | 50 120 200 Average Speed 125 | 111 120 240 Slowest Speed 280 | 120 120 280 Overloaded Moves . | . . . Propulsion Burnouts . | . . . Robots Hopped . | . . . Cave-ins Triggered . | . . . Exploration Rate (%) 41 | 5 98 22 Regions Visited 2 Branch Regions 1 Pre-discovered Areas . | . . . Known Exits Taken . | . . . Unknown Exits Taken 2 | 1 1 . Scrap Searched 1 | . . 1 Spaces Dug 7 | . . 7 Terrain Destroyed 39 | . 3 36 Melee . | . . . Projectile . | . . . AOE 39 | . 3 36 Terrain Rammed . | . . . Walls Destroyed . | . . . Machines Disabled . | . . . Actions | -11 -10 -10 --------- Run | Scr Mat Min Total 1455 | 63 1301 91 Wait 168 | . 168 . Move 1085 | 51 977 57 Hop . | . . . Pick Up 26 | 6 20 . Fast Attach 14 | 6 8 . Attach 4 | . 1 3 Detach . | . . . Swap 17 | . 12 5 Drop 34 | . 32 2 Fire 107 | . 83 24 Melee . | . . . Ram . | . . . Kick . | . . . Crush . | . . . Escape Stasis . | . . . Rewire . | . . . Trap . | . . . Miscellaneous . | . . . Route ------- -11/Scrapyard -10/Materials (discovered 4 exits: [*Mat x3] / *Min) -10/Mines History --------- Turn | Location | Event 7 | -11/Scrapyard | Discovered new exit (range 16) 73 | -11/Scrapyard | Entered Materials 306 | -10/Materials | Build established: Mutant 445 | -10/Materials | Repaired Ion Engine 561 | -10/Materials | Discovered new exit (range 11) 790 | -10/Materials | Discovered new exit (range 16) 888 | -10/Materials | Discovered new exit (range 11) 1089 | -10/Materials | Core integrity fell below 50% 1134 | -10/Materials | Destroyed 7 combat bots 1510 | -10/Materials | Discovered new exit (range 11) 1706 | -10/Materials | Entered Mines 1879 | -10/Mines | Assembled infested the area 1884 | -10/Mines | Assisted by a Guerilla fighting off Assembled 1885 | -10/Mines | Met a Derelict shopkeep closing up shop 1906 | -10/Mines | Core integrity fell below 20% 1910 | -10/Mines | Destroyed by D-53 Grenadier with Mini Grenade Launcher Last Messages --------------- 01903_ R-06 Scavenger collects Flight Unit. 01904_ Lgt. Ion Engine destroyed. 01905_ S-10 Pest knocked back. 01906_ The unstable cave ceiling collapses. 01906_ as-10254 destroyed. 01906_ as-77748 destroyed. 01906_ as-53539 destroyed. 01907_ HV Slug penetrates Wall. 01907_ D-53 Grenadier unfolds itself. 01908_ Lgt. Armor Plating destroyed. 01908_ System corrupted by crushing effect (+5). 01908_ Knocked back. 01909_ HV Slug penetrates Wall. 01909_ HV Slug penetrates Earth. 01909_ as-13604 destroyed. 01909_ Destroyed Asb. F-torch. 01910_ as-80574 destroyed. 01910_ as-55163 destroyed. 01910_ as-78491 destroyed. 01910_ as-90136 destroyed. Map ----- +----------------------------------------------------+ | | | | | | | ?????????????????????????????????????????????????? | | ?????????????????????????????????????????????????? | | ???????????#######???????????????????????????????? | | ???######### ###?????????????????????????????? | | ???# #######???????????????????????? | | ???# ##??????????????????????? | | ####% ##### ##?????????????????????? | | ##/[#??# ### #?????????????????????? | | ## #??#####?## #?????????????????????? | | ## #?????????#### % ##?????????????????????? | | ## #????????????### ###??????????????????????? | | ## #??????????##### d##########???????????????? | | #?????????## d # ##??????????????? | | #?????????# a a #??????????????? | | # ###?????????# % # ???????????? | | # #???????????## * #?????????????????? | | # #????????????## # #?????????????????? | | ### ?????????????##### #?????????????????? | | ??###??????????????#"! #?????????????????? | | ???????????????????#"] ! ##?????????????????? | | ???????????????????#"! [ #?????????????????? | | ???????????????????#"! ##????????????????? | | ???????????????????#"! @ #????????????????? | | ???????????????????#"! #????????????????? | | ???????????????????##### #????????????????? | | ???????????????????????# h ##????????????????? | | ???????????????????????# ##?????????????????? | | ???????????????????????# ; %;#??????????????????? | | ???????????????????????# ;r ;##??????????????????? | | ???????????????????????# % s;#???????????????????? | | ???????????????????????##;% ##???????????????????? | | ????????????????????????? #????????????????????? | | ?????????????????????????;###????????????????????? | | ????????????????????????? ???????????????????????? | | ?????????????????????????#???????????????????????? | | ?????????????????????????????????????????????????? | | ?????????????????????????????????????????????????? | | ?????????????????????????????????????????????????? | | ?????????????????????????????????????????????????? | | ?????????????????????????????????????????????????? | | ?????????????????????????????????????????????????? | | ?????????????????????????????????????????????????? | | ?????????????????????????????????????????????????? | | ?????????????????????????????????????????????????? | | ?????????????????????????????????????????????????? | | ?????????????????????????????????????????????????? | | ?????????????????????????????????????????????????? | +----------------------------------------------------+ Best States ------------- Heat Dissipation 35 Energy Generation 10 Energy Capacity 250 Matter Stores 300 Matter Capacity 300 Sight Range 16 Terrain Scan Density 10 Armor Coverage 150 Evasion (%) 55 Item Schematics ----------------- None Robot Schematics ------------------ None Fabricated ------------ Nothing Alien Tech Used ----------------- None Achievements -------------- None Challenges ------------ None Game ------ Seed TerrabombInsulationCleaver Manual? 0 Play Time 00:22:23 Cumulative 49.7 hours Start 2021.06.03 @ 15:15:52 End 2021.06.03 @ 15:35:44 Sessions 1 Manual Loads 0 Difficulty Rogue Special Mode None Game No. 46 Rogue 46 Adventurer 0 Explorer 0 Win Type - Total 1 Types 1/0/0/0/0/0/0/0/0 Lore% 43 Gallery% 48 Achievement% 40 Wizard Run 0 Options --------- ASCII 1 Keyboard 1 Movement Numpad Keybinds 0 Fullscreen 2 Font 18/SmallcapsGlow Map View 76x50 Tactical HUD 1 Map Filters NONE Filters NONE Steam 1 RUN: ac7e8181-9814-463e-a81a-998dc8419d81